fUST/lending_fUST_20240616
["ID","MTS","AMOUNT","RATE_DAILY","PERIOD"]
[329639069,1718521858656,-414.77355948,0.00019178,2]
[329639070,1718521858672,-500.0,0.00019178,2]
[329639071,1718521858684,-500.0,0.00019178,2]
[329639072,1718521858705,-500.0,0.00019178,2]
[329639073,1718521858756,-637.27615394,0.00019178,2]
[329639074,1718521858773,-500.0,0.00019178,2]
[329639075,1718521858787,-500.0,0.00019178,2]
[329639076,1718521858806,-226.44224363,0.00019178,2]
[329639077,1718521858840,-500.0,0.00019178,2]
[329639078,1718521858862,-500.0,0.00019178,2]
[329639079,1718521858878,-500.0,0.00019178,2]
[329639080,1718521858897,-500.0,0.00019178,2]
[329639081,1718521858940,-425.50958395,0.00019178,2]
[329639082,1718521858972,-207.10153089,0.00019178,2]
[329639083,1718521859008,-500.0,0.00019178,2]
[329639084,1718521859034,-500.0,0.00019178,2]
[329639085,1718521859049,-500.0,0.00019178,2]
[329639086,1718521859064,-320.61723977,0.00019178,2]
[329639087,1718521859094,-550.0,0.00019178,2]
[329639088,1718521859108,-418.35987901,0.00019178,2]
[329639089,1718521859144,-500.0,0.00019178,2]
[329639090,1718521859163,-500.0,0.00019178,2]
[329639091,1718521859212,-500.0,0.00019178,2]
[329639092,1718521859256,-251.83613334,0.00019178,2]
[329639093,1718521859268,-500.0,0.00019178,2]
[329639094,1718521859280,-500.0,0.00019178,2]
[329639095,1718521859295,-500.0,0.00019178,2]
[329639096,1718521859305,-500.0,0.00019178,2]
[329639097,1718521859322,-156.64662187,0.00019178,2]
[329639098,1718521859333,-500.0,0.00019178,2]
[329639099,1718521859345,-500.0,0.00019178,2]
[329639100,1718521859357,-500.0,0.00019178,2]
[329639101,1718521859368,-500.0,0.00019178,2]
[329639102,1718521859379,-500.0,0.00019178,2]
[329639103,1718521859395,-3494.9829357,0.00019178,2]
[329639104,1718521859424,-521.56103183,0.00019178,2]
[329639105,1718521859500,-306.19449637,0.00019178,2]
[329639106,1718521859513,-500.0,0.00019178,2]
[329639107,1718521859525,-250.10076303,0.00019178,2]
[329639108,1718521859537,-500.0,0.00019178,2]
[329639109,1718521859557,-501.63392266,0.00019178,2]
[329639110,1718521859568,-500.0,0.00019178,2]
[329639111,1718521859614,-500.0,0.00019178,2]
[329639112,1718521859626,-483.01518683,0.00019178,2]
[329639113,1718521859653,-195.43152444,0.00019178,2]
[329639114,1718521859664,-500.0,0.00019178,2]
[329639115,1718521859693,-344.96964139,0.00019178,2]
[329639116,1718521859712,-634.99650065,0.00019178,2]
[329639117,1718521859725,-634.99650065,0.00019178,2]
[329639118,1718521859735,-634.99650065,0.00019178,2]
[329639119,1718521859746,-634.99650065,0.00019178,2]
[329639120,1718521859763,-634.99650065,0.00019178,2]
[329639121,1718521859816,-634.99650065,0.00019178,2]
[329639122,1718521859835,-634.99650065,0.00019178,2]
[329639123,1718521859850,-634.99650065,0.00019178,2]
[329639124,1718521859866,-634.99650065,0.00019178,2]
[329639125,1718521859879,-634.99650065,0.00019178,2]
[329639126,1718521859890,-634.99650065,0.00019178,2]
[329639127,1718521859910,-634.99650065,0.00019178,2]
[329639128,1718521859927,-634.99650065,0.00019178,2]
[329639129,1718521859943,-634.99650065,0.00019178,2]
[329639130,1718521859972,-634.99650065,0.00019178,2]
[329639131,1718521860032,-634.99650065,0.00019178,2]
[329639132,1718521860065,-634.99650065,0.00019178,2]
[329639133,1718521860102,-634.99650065,0.00019178,2]
[329639134,1718521860127,-634.99650065,0.00019178,2]
[329639135,1718521860189,-634.99650065,0.00019178,2]
[329639136,1718521860225,-634.99650065,0.00019178,2]
[329639137,1718521860255,-634.99650065,0.00019178,2]
[329639138,1718521860284,-634.99650065,0.00019178,2]
[329639139,1718521860309,-634.99650065,0.00019178,2]
[329639140,1718521860321,-634.99650065,0.00019178,2]
[329639141,1718521860333,-634.99650065,0.00019178,2]
[329639142,1718521860348,-634.99650065,0.00019178,2]
[329639143,1718521860380,-634.99650065,0.00019178,2]
[329639144,1718521860393,-634.99650065,0.00019178,2]
[329639145,1718521860409,-634.99650065,0.00019178,2]
[329639146,1718521860426,-634.99650065,0.00019178,2]
[329639147,1718521860442,-634.99650065,0.00019178,2]
[329639148,1718521860473,-634.99650065,0.00019178,2]
[329639149,1718521860501,-634.99650065,0.00019178,2]
[329639150,1718521860514,-634.99650065,0.00019178,2]
[329639151,1718521860576,-634.99650065,0.00019178,2]
[329639152,1718521860590,-634.99650065,0.00019178,2]
[329639153,1718521860608,-634.99650065,0.00019178,2]
[329639154,1718521860640,-634.99650065,0.00019178,2]
[329639155,1718521860653,-634.99650065,0.00019178,2]
[329639156,1718521860678,-634.99650065,0.00019178,2]
[329639157,1718521860690,-634.99650065,0.00019178,2]
[329639158,1718521860720,-634.99650065,0.00019178,2]
[329639159,1718521860748,-634.99650065,0.00019178,2]
[329639160,1718521860763,-634.99650065,0.00019178,2]
[329639161,1718521860790,-634.99650065,0.00019178,2]
[329639162,1718521860804,-634.99650065,0.00019178,2]
[329639163,1718521860817,-634.99650065,0.00019178,2]
[329639164,1718521860829,-634.99650065,0.00019178,2]
[329639165,1718521860876,-634.99650065,0.00019178,2]
[329639166,1718521860910,-634.99650065,0.00019178,2]
[329639167,1718521860932,-634.99650065,0.00019178,2]
[329639168,1718521860964,-634.99650065,0.00019178,2]
[329639169,1718521860977,-634.99650065,0.00019178,2]
[329639170,1718521860989,-634.99650065,0.00019178,2]
[329639171,1718521861005,-634.99650065,0.00019178,2]
[329639172,1718521861063,-571.49685057,0.00019178,2]
[329639173,1718521861104,-571.49685057,0.00019178,2]
[329639174,1718521861130,-571.49685057,0.00019178,2]
[329639175,1718521861168,-571.49685057,0.00019178,2]
[329639176,1718521861179,-571.49685057,0.00019178,2]
[329639177,1718521861190,-571.49685057,0.00019178,2]
[329639178,1718521861203,-571.49685057,0.00019178,2]
[329639179,1718521861244,-4956.86033767,0.00019178,2]
[329639180,1718521861271,-4956.86033767,0.00019178,2]
[329639181,1718521861284,-4956.86033767,0.00019178,2]
[329639182,1718521861298,-4956.86033767,0.00019178,2]
[329639183,1718521861309,-4956.86033767,0.00019178,2]
[329639184,1718521861323,-4956.86033767,0.00019178,2]
[329639185,1718521861340,-4956.86033767,0.00019178,2]
[329639186,1718521861362,-4956.86033767,0.00019178,2]
[329639187,1718521861381,-4956.86033767,0.00019178,2]
[329639188,1718521861400,-4956.86033767,0.00019178,2]
[329639189,1718521861430,-4956.86033767,0.00019178,2]
[329639190,1718521861449,-4956.86033767,0.00019178,2]
[329639191,1718521861486,-4956.86033767,0.00019178,2]
[329639192,1718521861527,-4956.86033767,0.00019178,2]
[329639193,1718521861542,-4956.86033767,0.00019178,2]
[329639194,1718521861560,-4956.86033767,0.00019178,2]
[329639195,1718521861578,-4956.86033767,0.00019178,2]
[329639196,1718521861640,-4956.86033767,0.00019178,2]
[329639197,1718521861667,-4956.86033767,0.00019178,2]
[329639198,1718521861698,-4956.86033767,0.00019178,2]
[329639199,1718521861711,-4956.86033767,0.00019178,2]
[329639200,1718521861774,-4956.86033767,0.00019178,2]
[329639201,1718521861810,-4956.86033767,0.00019178,2]
[329639202,1718521861832,-4956.86033767,0.00019178,2]
[329639203,1718521861843,-4956.86033767,0.00019178,2]
[329639204,1718521861855,-4956.86033767,0.00019178,2]
[329639205,1718521861868,-4956.86033767,0.00019178,2]
[329639206,1718521861878,-4956.86033767,0.00019178,2]
[329639207,1718521861891,-4956.86033767,0.00019178,2]
[329639208,1718521861916,-4956.86033767,0.00019178,2]
[329639209,1718521861929,-4956.86033767,0.00019178,2]
[329639210,1718521861942,-4956.86033767,0.00019178,2]
[329639211,1718521861957,-4956.86033767,0.00019178,2]
[329639212,1718521861974,-4956.86033767,0.00019178,2]
[329639213,1718521861987,-4956.86033767,0.00019178,2]
[329639214,1718521861997,-7313.4004982,0.00019178,2]
[329639215,1718521862007,-7313.4004982,0.00019178,2]
[329639216,1718521862029,-7313.4004982,0.00019178,2]
[329639217,1718521862040,-7313.4004982,0.00019178,2]
[329639218,1718521862056,-7313.4004982,0.00019178,2]
[329639219,1718521862068,-7313.4004982,0.00019178,2]
[329639220,1718521862083,-7313.4004982,0.00019178,2]
[329639221,1718521862099,-7313.4004982,0.00019178,2]
[329639222,1718521862110,-7313.4004982,0.00019178,2]
[329639223,1718521862125,-7313.4004982,0.00019178,2]
[329639224,1718521862155,-7313.4004982,0.00019178,2]
[329639225,1718521862201,-7313.4004982,0.00019178,2]
[329639226,1718521862218,-7313.4004982,0.00019178,2]
[329639227,1718521862237,-7313.4004982,0.00019178,2]
[329639228,1718521862252,-7313.4004982,0.00019178,2]
[329639229,1718521862263,-7313.4004982,0.00019178,2]
[329639230,1718521862297,-7313.4004982,0.00019178,2]
[329639231,1718521862330,-7313.4004982,0.00019178,2]
[329639232,1718521862363,-7313.4004982,0.00019178,2]
[329639233,1718521862377,-7313.4004982,0.00019178,2]
[329639234,1718521862426,-7313.4004982,0.00019178,2]
[329639235,1718521862452,-7313.4004982,0.00019178,2]
[329639236,1718521862471,-7313.4004982,0.00019178,2]
[329639237,1718521862484,-7313.4004982,0.00019178,2]
[329639238,1718521862515,-7313.4004982,0.00019178,2]
[329639239,1718521862565,-7313.4004982,0.00019178,2]
[329639240,1718521862576,-4956.86033767,0.00019178,2]
[329639241,1718521862599,-7313.4004982,0.00019178,2]
[329639242,1718521862613,-4956.86033767,0.00019178,2]
[329639243,1718521862626,-4956.86033767,0.00019178,2]
[329639244,1718521862644,-4956.86033767,0.00019178,2]
[329639245,1718521862656,-1858.26858114,0.00019178,2]
[329639246,1718521862669,-1858.26858114,0.00019178,2]
[329639247,1718521862683,-1858.26858114,0.00019178,2]
[329639248,1718521862696,-1858.26858114,0.00019178,2]
[329639249,1718521862717,-1858.26858114,0.00019178,2]
[329639250,1718521862731,-1858.26858114,0.00019178,2]
[329639251,1718521862764,-1858.26858114,0.00019178,2]
[329639252,1718521862799,-1858.26858114,0.00019178,2]
[329639253,1718521862819,-1858.26858114,0.00019178,2]
[329639254,1718521862846,-1858.26858114,0.00019178,2]
[329639255,1718521862859,-1858.26858114,0.00019178,2]
[329639256,1718521862873,-1858.26858114,0.00019178,2]
[329639257,1718521862885,-1858.26858114,0.00019178,2]
[329639258,1718521862897,-1858.26858114,0.00019178,2]
[329639259,1718521862910,-1858.26858114,0.00019178,2]
[329639260,1718521862957,-1858.26858114,0.00019178,2]
[329639261,1718521862969,-1858.26858114,0.00019178,2]
[329639262,1718521862981,-1858.26858114,0.00019178,2]
[329639263,1718521862992,-1858.26858115,0.00019178,2]
[329639264,1718521863011,-1858.26858115,0.00019178,2]
[329639265,1718521863032,-1858.26858115,0.00019178,2]
[329639266,1718521863085,-1858.26858114,0.00019178,2]
[329639267,1718521863111,-500.0,0.00019178,2]
[329639268,1718521863152,-1031.56,0.00019178,2]
[329639269,1718521863228,-1540.17,0.00019178,2]
[329639270,1718521863268,-2380.23,0.00019178,2]
[329639271,1718521863298,-554.38,0.00019178,2]
[329639272,1718521863392,-1708.65,0.00019178,2]
[329639273,1718521863428,-500.0,0.00019178,2]
[329639274,1718521863485,-645.54,0.00019178,2]
[329639275,1718521863576,-151.0,0.00019178,2]
[329639276,1718521863605,-833.35,0.00019178,2]
[329639277,1718521863663,-1092.98,0.00019178,2]
[329639278,1718521863679,-1417.19,0.00019178,2]
[329639279,1718521863730,-608.59,0.00019178,2]
[329639280,1718521863756,-505.87,0.00019178,2]
[329639281,1718521863785,-151.0,0.00019178,2]
[329639282,1718521863845,-1638.97,0.00019178,2]
[329639283,1718521863952,-2074.41,0.00019178,2]
[329639284,1718521863984,-917.17,0.00019178,2]
[329639285,1718521864004,-681.06,0.00019178,2]
[329639286,1718521864017,-500.0,0.00019178,2]
[329639287,1718521864051,-380.2386,0.00019178,2]
[329639288,1718521864098,-439.489556,0.00019178,4]
[329639289,1718521864112,-151.0,0.00019178,2]
[329639290,1718521864152,-240.059865,0.00019178,2]
[329639291,1718521864176,-160.0,0.00019248,7]
[329639292,1718521864189,-160.0,0.00019331,8]
[329639293,1718521864244,-104965.71387665,0.000194,2]
[329639294,1718521864341,-160.0,0.00019413,9]
[329639295,1718521864364,-500.0,0.00019452,2]
[329639296,1718521864378,-1031.56,0.00019452,2]
[329639297,1718521864389,-1540.17,0.00019452,2]
[329639298,1718521864424,-2380.23,0.00019452,2]
[329639299,1718521864435,-554.38,0.00019452,2]
[329639300,1718521864462,-1708.65,0.00019452,2]
[329639301,1718521864473,-500.0,0.00019452,2]
[329639302,1718521864492,-645.54,0.00019452,2]
[329639303,1718521864572,-833.35,0.00019452,2]
[329639304,1718521864585,-1092.98,0.00019452,2]
[329639305,1718521864599,-1417.19,0.00019452,2]
[329639306,1718521864648,-608.59,0.00019452,2]
[329639307,1718521864667,-505.87,0.00019452,2]
[329639308,1718521864710,-151.0,0.00019452,2]
[329639309,1718521864729,-1638.97,0.00019452,2]
[329639310,1718521864808,-2074.41,0.00019452,2]
[329639311,1718521864819,-917.17,0.00019452,2]
[329639312,1718521864832,-681.06,0.00019452,2]
[329639313,1718521864876,-500.0,0.00019452,2]
[329639314,1718521864917,-160.0,0.00019496,10]
[329639315,1718521864985,-214.0,0.000195,10]
[329639316,1718521865015,-160.0,0.00019578,11]
[329639317,1718521865059,-160.0,0.00019661,12]
[329639318,1718521865100,-46566.1133,0.000197,2]
[329639319,1718521865126,-500.0,0.00019726,2]
[329639320,1718521865155,-1031.56,0.00019726,2]
[329639321,1718521865184,-1540.17,0.00019726,2]
[329639322,1718521865214,-2380.23,0.00019726,2]
[329639323,1718521865237,-554.38,0.00019726,2]
[329639324,1718521865255,-1708.65,0.00019726,2]
[329639325,1718521865272,-500.0,0.00019726,2]
[329639326,1718521865286,-645.54,0.00019726,2]
[329639327,1718521865360,-833.35,0.00019726,2]
[329639328,1718521865386,-1092.98,0.00019726,2]
[329639329,1718521865409,-1417.19,0.00019726,2]
[329639330,1718521865431,-608.59,0.00019726,2]
[329639331,1718521865504,-505.87,0.00019726,2]
[329639332,1718521865515,-1638.97,0.00019726,2]
[329639333,1718521865526,-2074.41,0.00019726,2]
[329639334,1718521865545,-917.17,0.00019726,2]
[329639335,1718521865570,-681.06,0.00019726,2]
[329639336,1718521865600,-500.0,0.00019726,2]
[329639337,1718521865613,-160.0,0.00019744,13]
[329639338,1718521865643,-160.0,0.00019826,14]
[329639339,1718521865655,-160.0,0.00019909,15]
[329639340,1718521865693,-160.0,0.00019991,16]
[329639341,1718521865711,-67782.64027332,0.00019999,2]
[329639342,1718521865726,-20951.49637284,0.0002,2]
[329639343,1718521865740,-9503.85273345,0.0002,2]
[329639344,1718521865764,-435.0,0.0002,2]
[329639345,1718521865780,-1114.0595169,0.0002,2]
[329639346,1718521865806,-154.9690062,0.0002,2]
[329639347,1718521865832,-154.9690062,0.0002,2]
[329639348,1718521865878,-278.9085365,0.0002,2]
[329639349,1718521865907,-186.26581181,0.0002,2]
[329639350,1718521865918,-160.0,0.0002,2]
[329639351,1718521865931,-224.31034195,0.0002,2]
[329639352,1718521865948,-222.15995424,0.0002,2]
[329639353,1718521865996,-2000.0,0.0002,2]
[329639354,1718521866039,-2000.0,0.0002,2]
[329639355,1718521866080,-2000.0,0.0002,2]
[329639356,1718521866092,-2000.0,0.0002,2]
[329639357,1718521866103,-52809.72015128,0.0002,2]
[329639358,1718521866118,-6386.61524585,0.0002,2]
[329639359,1718521866214,-4262.24575082,0.0002,2]
[329639360,1718521866225,-54870.8046055,0.0002,2]
[329639361,1718521866348,-1000.2969558,0.0002,2]
[329639362,1718521866638,-1674.79371648,0.0002,2]
[329639363,1718521866705,-10738.97414175,0.0002,2]
[329639366,1718522013990,3000.0,0.00023,30]
[329639367,1718522273948,2000.0,0.00013537,2]
[329639369,1718522319861,2000.0,0.00013529,2]
[329639372,1718522575073,1156.75226157,0.000226,29]
[329639373,1718522619378,3000.0,0.00023,30]
[329639377,1718522891671,158.42614,0.00023562,60]
[329639378,1718522891899,158.42614,0.00023562,70]
[329639379,1718522892133,158.42614,0.00023562,80]
[329639380,1718522892578,158.42614,0.00023562,90]
[329639381,1718522892765,158.42614,0.00023562,100]
[329639382,1718522893038,158.42614,0.00023562,110]
[329639383,1718522893243,158.42614,0.00023562,119]
[329639394,1718523019828,3655.35,0.00025,60]
[329639422,1718523036420,-504.3254449,0.00015291,2]
[329639423,1718523036452,-2150.50337403,0.00015307,2]
[329639430,1718523041479,-621.17403756,0.00015307,2]
[329639431,1718523041919,-1173.66402396,0.00015307,2]
[329639432,1718523041939,-4548.66252435,0.00015307,2]
[329639433,1718523041968,-300.0,0.00015999,2]
[329639434,1718523042025,-173.16724286,0.00016163,2]
[329639457,1718523092204,339.22,0.00025,60]
[329639458,1718523254796,3000.0,0.00023,30]
[329639465,1718523426483,6870.5448576,0.00025,60]
[329639466,1718523436185,170.41099002,0.0002,120]
[329639503,1718523818654,3000.0,0.00023,30]
[329639505,1718524091010,158.42614,0.00023562,72]
[329639506,1718524091442,158.42614,0.00023562,96]
[329639507,1718524091689,158.42614,0.00023562,120]
[329639580,1718524240661,-631.9215086,0.00016,2]
[329639582,1718524241128,-724.36880541,0.00016,2]
[329639583,1718524241197,-267.489739,0.00016164,2]
[329639584,1718524241248,-1954.11359287,0.00016236,2]
[329639585,1718524241265,-11.78256682,0.00016334,2]
[329639636,1718524308616,1000.0,0.00025,60]
[329639637,1718524430130,3000.0,0.00023,30]
[329639638,1718524885362,308.0,0.00022603,30]
[329639639,1718524945680,2000.0,0.0002,21]
[329639640,1718524997462,4000.0,0.00014,2]
[329639641,1718524999508,158.42614,0.00023562,61]
[329639642,1718524999760,158.42614,0.00023562,120]
[329639643,1718525012469,3000.0,0.00023,30]
[329639644,1718525206538,1000.0,0.00025,60]
[329639645,1718525213766,1000.0,0.00025,60]
[329639649,1718525227856,1000.0,0.00025,60]
[329639650,1718525250661,1000.0,0.00025,60]
[329639651,1718525260738,1000.0,0.00025,60]
[329639670,1718525435911,-636.53625817,0.00016,3]
[329639700,1718525441241,-255.34213777,0.00016,3]
[329639772,1718525447122,-108.12160406,0.00016,3]
[329639773,1718525447154,-1356.29031401,0.00016,2]
[329639774,1718525447220,-336.95688303,0.00016133,2]
[329639791,1718525450272,-483.22519078,0.00016133,2]
[329639793,1718525450331,-889.66731996,0.00016133,2]
[329639794,1718525450354,-266.544133,0.00016164,2]
[329639795,1718525450381,-11110.34812878,0.00016232,2]
[329639796,1718525450429,-3701.96912394,0.00016232,2]
[329639797,1718525450442,-7557.37448758,0.00016232,2]
[329639798,1718525450472,-12530.70687644,0.00016232,2]
[329639799,1718525450849,-24368.89890894,0.00016232,2]
[329639800,1718525452392,-57338.31581997,0.00016232,2]
[329639801,1718525610929,3000.0,0.00023,30]
[329639835,1718526215549,3000.0,0.00023,30]
[329639841,1718526626090,2770.78381287,0.00023,30]
[329639868,1718526642309,-2347.76790413,0.00014843,2]
[329639869,1718526642322,-300.0,0.00014844,2]
[329639870,1718526642334,-300.0,0.00014844,2]
[329639871,1718526642347,-5224.48671079,0.00014845,2]
[329639872,1718526642365,-1264.77875999,0.00014845,2]
[329639928,1718526650792,-2939.24571115,0.00014845,2]
[329639929,1718526650830,-9128.46559457,0.00014845,2]
[329639930,1718526650862,-381.37847006,0.00016,2]
[329639932,1718526651781,-427.63664462,0.00016,2]
[329639933,1718526651834,-547.27519933,0.00016,2]
[329639934,1718526651909,-965.27530162,0.00016064,2]
[329639935,1718526651942,-638.65324663,0.00016064,2]
[329639939,1718526651994,-769.10021436,0.000161,2]
[329639943,1718526652100,-5669.34941903,0.000161,2]
[329639953,1718526652551,-7000.0,0.000161,2]
[329639954,1718526715413,10228.07430849,9.999e-05,2]
[329639955,1718526759988,1878.57969235,9.999e-05,2]
[329639956,1718526779406,172.97829696,9.999e-05,2]
[329639957,1718526799599,155.02170304,9.999e-05,2]
[329639958,1718526812216,3000.0,0.00023,30]
[329639959,1718526891546,1149.87,0.00025,60]
[329639962,1718526993886,162.257584,0.00013836,2]
[329639963,1718527209085,1813.0,0.00025,120]
[329639964,1718527360650,24102.22957837,0.00013786,2]
[329639965,1718527360740,4066.84758393,0.00013786,2]
[329639966,1718527409544,3000.0,0.00023,30]
[329639967,1718527455390,24890.0,0.00013809,2]
[329640001,1718527835764,-2476.91548945,0.00014997,2]
[329640003,1718527835822,-2541.71930474,0.00014998,2]
[329640004,1718527835880,-300.0,0.00014999,2]
[329640005,1718527835922,-5535.77965077,0.00015,2]
[329640015,1718527842671,-3023.24539585,0.00015,2]
[329640092,1718527849680,-22950.06947943,0.00015,2]
[329640107,1718527851812,-3225.13062897,0.00015,2]
[329640108,1718527851860,-559.47440746,0.000159,2]
[329640109,1718527851871,-9868.61027518,0.00015991,2]
[329640110,1718527851921,-7115.62899351,0.00015991,2]
[329640111,1718527987548,300000.0,0.00025,60]
[329640112,1718528003243,210384.37180504,0.00025,60]
[329640113,1718528017099,3000.0,0.00023,30]
[329640118,1718528442813,2038.56645483,0.00013999,2]
[329640119,1718528456686,970.15150518,0.00013999,2]
[329640120,1718528464324,300.0,0.00013999,2]
[329640121,1718528465089,59628.30349653,0.00013999,2]
[329640122,1718528479076,13138.68730248,0.00013999,2]
[329640124,1718528522723,300.0,0.00013999,2]
[329640125,1718528582674,300.0,0.00013999,2]
[329640132,1718528607114,3000.0,0.00023,30]
[329640248,1718529034926,-5062.89541053,0.00014,2]
[329640358,1718529048392,-10606.37771129,0.00014,2]
[329640366,1718529048496,-295.83716802,0.00014,2]
[329640381,1718529049772,-36498.93571171,0.00014,2]
[329640382,1718529049783,-447.57952596,0.00014353,2]
[329640383,1718529049796,-19721.10379798,0.00014453,2]
[329640385,1718529056012,-257.85217078,0.00014453,2]
[329640386,1718529056278,-819.56308128,0.00014453,2]
[329640387,1718529056401,-734.48533866,0.00014453,2]
[329640388,1718529056421,-162.257585,0.00014542,2]
[329640389,1718529056440,-447.57952596,0.00014849,2]
[329640390,1718529056452,-447.57952596,0.00015346,2]
[329640391,1718529056464,-190.36542391,0.000158,2]
[329640392,1718529056478,-447.57952596,0.00015842,2]
[329640393,1718529056489,-3652.98642591,0.00015987,2]
[329640394,1718529060652,400.0,0.00022,30]
[329640396,1718529211742,3000.0,0.00023,30]
[329640397,1718529487421,-3000.0,0.0002301,30]
[329640398,1718529487562,-3000.0,0.0002302,30]
[329640399,1718529487719,-3000.0,0.0002303,30]
[329640400,1718529487867,-150.5,0.0002408,35]
[329640401,1718529487900,-536.0,0.0002408,35]
[329640402,1718529487939,-150.5,0.0002408,35]
[329640403,1718529487972,-150.5,0.0002408,35]
[329640404,1718529488008,-150.5,0.0002408,35]
[329640405,1718529488047,-311.0,0.0002408,35]
[329640406,1718529488079,-266.0,0.0002408,35]
[329640407,1718529488120,-1267.0,0.0002408,35]
[329640408,1718529488160,-150.5,0.0002408,35]
[329640409,1718529488302,-11.83,0.0002408,35]
[329640410,1718529488435,-3000.0,0.0002304,30]
[329640411,1718529488600,-3000.0,0.0002305,30]
[329640412,1718529489095,-466.16966744,0.0002306,30]
[329640413,1718529489355,-150.5,0.0002409,35]
[329640414,1718529489451,-150.5,0.0002409,35]
[329640415,1718529489499,-536.0,0.0002409,35]
[329640416,1718529489554,-150.5,0.0002409,35]
[329640417,1718529489611,-150.5,0.0002409,35]
[329640418,1718529489649,-150.5,0.0002409,35]
[329640419,1718529489696,-311.0,0.0002409,35]
[329640420,1718529489748,-266.0,0.0002409,35]
[329640421,1718529489847,-665.0,0.0002409,35]
[329640422,1718529489997,-2533.83033256,0.0002306,30]
[329640423,1718529490071,-466.16966744,0.0002307,30]
[329640424,1718529490371,-2533.83033256,0.0002307,30]
[329640425,1718529490408,-466.16966744,0.0002308,30]
[329640426,1718529490720,-602.0,0.0002409,35]
[329640427,1718529490774,-150.5,0.000241,35]
[329640428,1718529490853,-150.5,0.000241,35]
[329640429,1718529490909,-536.0,0.000241,35]
[329640430,1718529490964,-150.5,0.000241,35]
[329640431,1718529491035,-150.5,0.000241,35]
[329640432,1718529491083,-150.5,0.000241,35]
[329640433,1718529491324,-311.0,0.000241,35]
[329640434,1718529491370,-266.0,0.000241,35]
[329640435,1718529491422,-120.49,0.000241,35]
[329640436,1718529501097,-2533.83033256,0.0002308,30]
[329640437,1718529501253,-645.0479,0.0002309,30]
[329640438,1718529501408,-2354.9521,0.0002309,30]
[329640439,1718529501446,-645.0479,0.000231,30]
[329640440,1718529502923,-2354.9521,0.000231,30]
[329640441,1718529502963,-78.30099189,0.0002311,30]
[329640442,1718529503236,-1146.51,0.000241,35]
[329640443,1718529503281,-536.0,0.0002487,35]
[329640444,1718529503357,-847.99,0.0002487,35]
[329640445,1718529503655,-2921.69900811,0.0002311,30]
[329640446,1718529503844,-419.01,0.0002487,35]
[329640447,1718529503876,-311.0,0.0002487,35]
[329640448,1718529503913,-266.0,0.0002487,35]
[329640449,1718529504313,-466.16966744,0.0002312,30]
[329640450,1718529504491,-420.4807,0.0002312,30]
[329640451,1718529519531,173.654,0.00024621,120]
[329640452,1718529519636,173.655,0.00024621,120]
[329640453,1718529519727,173.655,0.00024621,120]
[329640454,1718529545534,760.0,0.0002419,35]
[329640455,1718529546169,311.016,0.0002418,35]
[329640456,1718529560096,778.24,0.00010959,2]
[329640458,1718529804968,78.30099189,0.00023,30]
[329640459,1718529805033,2921.69900811,0.00023,30]
[329640460,1718529805304,78.30099189,0.0002301,30]
[329640461,1718529805341,2921.69900811,0.0002301,30]
[329640462,1718529805761,78.30099189,0.0002302,30]
[329640463,1718529805816,2921.69900811,0.0002302,30]
[329640464,1718529806280,78.30099189,0.0002303,30]
[329640465,1718529806314,2921.69900811,0.0002303,30]
[329640534,1718530249008,-499.8,0.00015838,2]
[329640538,1718530249836,-343.94057279,0.00015838,2]
[329640541,1718530251418,-1633.17491666,0.00015838,2]
[329640542,1718530251432,-181.88616413,0.00015839,2]
[329640543,1718530251453,-300.0,0.00015886,2]
[329640544,1718530251468,-50297.47630968,0.00015887,2]
[329640545,1718530251507,-1475.23055185,0.00015887,2]
[329640547,1718530414335,78.30099189,0.00023,30]
[329640548,1718530414418,2921.69900811,0.00023,30]